fUSD/lending_fUSD_20240818
["ID","MTS","AMOUNT","RATE_DAILY","PERIOD"]
[335237647,1724008237752,-84.37875011,0.00010949,2]
[335237648,1724008237762,-400.00078984,0.00010949,2]
[335237649,1724008237774,-128.91917083,0.00010949,2]
[335237650,1724008237784,-155.0,0.00010949,2]
[335237651,1724008237793,-250.0,0.00010959,2]
[335237653,1724008237802,-110.766429,0.00010965,2]
[335237655,1724008237813,-63.073571,0.00010965,2]
[335237657,1724008237823,-687.41722855,0.00010979,2]
[335237658,1724008237834,-155.0,0.00010979,2]
[335237659,1724008237844,-111.11920045,0.00010989,2]
[335237660,1724008237857,-198.88079955,0.00010989,2]
[335237661,1724008237869,-766.76450465,0.00010997,2]
[335237662,1724008237878,-150.0,0.00010998,2]
[335237663,1724008237887,-300.0,0.00010998,2]
[335237664,1724008237897,-300.0,0.00010998,2]
[335237665,1724008237907,-705.3146958,0.00010999,3]
[335237666,1724008237920,-733.15483602,0.00010999,3]
[335237667,1724008237930,-466.84516398,0.00010999,3]
[335237668,1724008237945,-758.11221771,0.00010999,3]
[335237669,1724008237956,-63.37199192,0.00010999,3]
[335237670,1724008237966,-1288.3293736,0.00010999,3]
[335237671,1724008237975,-626.86788084,0.00010999,2]
[335237672,1724008237984,-783.92,0.00010999,2]
[335237673,1724008237994,-4.86240583,0.00010999,2]
[335237674,1724008238008,-1388.09553447,0.00010999,2]
[335237675,1724008238019,-987.45743925,0.00010999,2]
[335237676,1724008238034,-3887.55462045,0.00010999,2]
[335237677,1724008238043,-358.32,0.00010999,2]
[335237678,1724008238052,-6038.72,0.00011,2]
[335237679,1724008238061,-521.0,0.00011,2]
[335237680,1724008238071,-499.99,0.00011,2]
[335237681,1724008238080,-150.99,0.00011,2]
[335237682,1724008238090,-9182.26243511,0.00011,2]
[335237683,1724008238101,-408.66224937,0.00011,2]
[335237684,1724008238116,-395.52138118,0.00011,2]
[335237685,1724008238127,-8552.81997639,0.00011,2]
[335237686,1724008238137,-72345.88543812,0.00011,2]
[335237687,1724008238149,-1634.69999995,0.00011,2]
[335237688,1724008238159,-818.775,0.00011,2]
[335237699,1724008239931,-347.55568211,0.00011,2]
[335237707,1724008239998,-974.70819993,0.00011,2]
[335237709,1724008240009,-1594.45916566,0.00011,2]
[335237711,1724008240020,-291.77999968,0.00011,2]
[335237712,1724008240031,-266.75000001,0.00011,2]
[335237713,1724008240041,-69948.82056898,0.00011,2]
[335237714,1724008240171,-2500.80795228,0.00011,2]
[335237715,1724008240234,-73202.26025469,0.00011,2]
[335237716,1724008240245,-119752.81738925,0.00011,2]
[335237717,1724008240258,-300.0495264,0.00011,2]
[335237718,1724008240270,-69724.37464155,0.00011,2]
[335237719,1724008240281,-5227.0184741,0.00011,2]
[335237720,1724008240293,-3037.71,0.00011,2]
[335237763,1724008242835,-350.62,0.00011,2]
[335237764,1724008242848,-2448.6,0.00011,2]
[335237765,1724008242862,-598.43396625,0.00011,2]
[335237766,1724008242873,-1039.33828628,0.00011,2]
[335237767,1724008242884,-18847.96200157,0.00011,2]
[335237768,1724008242898,-9245.25,0.00011,2]
[335237770,1724008242910,-383.53475,0.00011,2]
[335237772,1724008242922,-78800.91769367,0.00011,2]
[335237773,1724008242933,-3529.11975385,0.00011,2]
[335237774,1724008242945,-3397.76989014,0.00011,2]
[335237775,1724008242956,-1269.05719409,0.00011,2]
[335237776,1724008242967,-4067.36369328,0.00011,2]
[335237790,1724008243782,-376.8899995,0.00011,2]
[335237791,1724008243794,-3563.9999998,0.00011,2]
[335237792,1724008243806,-2971.4261541,0.00011,2]
[335237793,1724008243818,-500.0,0.00011,2]
[335237794,1724008243830,-36597.54571064,0.00011,2]
[335237795,1724008243840,-2373.72,0.00011,2]
[335237796,1724008243851,-1795.66259684,0.00011,2]
[335237797,1724008243865,-1124.49542968,0.00011,2]
[335237798,1724008243876,-2829.58704795,0.00011,2]
[335237799,1724008243891,-511.74477419,0.00011,2]
[335237800,1724008243903,-4783.16,0.00011,2]
[335237801,1724008243914,-3511.94292385,0.00011,2]
[335237802,1724008243925,-1158.57076106,0.00011,2]
[335237803,1724008243946,-298.72,0.00011,2]
[335237804,1724008243958,-17630.64052017,0.00011,2]
[335237805,1724008243969,-4045.835814,0.00011,2]
[335237806,1724008243981,-25462.73508736,0.00011,2]
[335237807,1724008243993,-6020.00259753,0.00011,2]
[335237808,1724008244005,-6252.57710545,0.00011,2]
[335237826,1724008245895,-1144.25759762,0.00011,2]
[335237827,1724008245909,-1101.17387815,0.00011,2]
[335237828,1724008245921,-1082.61991605,0.00011,2]
[335237829,1724008245948,-429.89200498,0.00011,2]
[335237830,1724008246004,-10019.09632223,0.00011,2]
[335237831,1724008246015,-1131.90187909,0.00011,2]
[335237832,1724008246026,-90205.02356426,0.00011,2]
[335237833,1724008246056,-2576.65874721,0.00011,2]
[335237834,1724008246067,-500.0,0.00011,2]
[335237835,1724008246078,-389.71569304,0.00011,2]
[335237836,1724008246089,-2962.65797935,0.00011,2]
[335237837,1724008246101,-1583.93695145,0.00011,2]
[335237838,1724008246115,-264.37005527,0.00011,2]
[335237839,1724008246126,-327.47610783,0.00011,2]
[335237840,1724008246138,-1269.51983804,0.00011,2]
[335237841,1724008246149,-2026.77504163,0.00011,2]
[335237842,1724008246161,-1130.07324647,0.00011,2]
[335237843,1724008246171,-499.23044344,0.00011,2]
[335237844,1724008266601,150.0,0.0001089,2]
[335237845,1724008266645,259.29875,0.0001089,2]
[335237846,1724008284711,511.66131445,0.000109,2]
[335237847,1724008294794,7500.0,0.000109,2]
[335237848,1724008296192,374.38,9.099e-05,2]
[335237849,1724008297693,3513.75554594,0.000109,2]
[335237850,1724008315702,9704.4155,0.000109,2]
[335237851,1724008327364,543.9307,0.000109,2]
[335237852,1724008370347,6112.8283,0.00010849,2]
[335237853,1724008461431,181.95,0.0001072,2]
[335237860,1724008562871,7021.46022983,0.000109,2]
[335237861,1724008568093,156.77939307,0.00010859,2]
[335237862,1724008581180,3939.36827943,0.00010899,2]
[335237863,1724008611179,3939.36827943,0.00010899,2]
[335237864,1724008636416,314.1744,0.0001089,2]
[335237865,1724008660496,2842.68366227,0.00010899,2]
[335237866,1724008769335,15483.10746637,0.00010899,2]
[335237867,1724008771102,2195.63,0.00010749,2]
[335237868,1724008804617,369.88,0.00010725,2]
[335237869,1724008872437,355.66,8.735e-05,2]
[335237870,1724008877799,160.470016,0.00010659,2]
[335237873,1724008947726,1725.0,0.00010899,2]
[335237874,1724008979327,5403.79429818,0.00010899,2]
[335237875,1724008996657,341.08229,0.0001089,2]
[335237876,1724009000017,181.3,0.00010518,2]
[335237877,1724009052040,260.86575714,0.00010429,7]
[335237878,1724009073748,160.0,0.00010899,2]
[335237879,1724009076817,155.0,0.00010899,2]
[335237880,1724009099231,-324.0,0.00012874,10]
[335237881,1724009099266,-56.0,0.00013721,10]
[335237882,1724009112880,8535.18161666,0.000109,2]
[335237883,1724009127072,892.34005678,0.00010899,2]
[335237886,1724009189440,155.0,0.00010899,2]
[335237892,1724009262205,155.0,0.00010899,2]
[335237893,1724009280937,155.0,0.00010899,2]
[335237894,1724009316324,155.0,0.00010899,2]
[335237895,1724009322842,704.09,0.00010405,2]
[335237896,1724009354930,310.0,0.00010899,2]
[335237897,1724009356730,261.812,0.0001089,2]
[335237898,1724009370308,155.0,0.00010899,2]
[335237910,1724009431958,-160.470016,0.00010926,2]
[335237912,1724009431968,-250.0,0.00010959,2]
[335237913,1724009431977,-793.66,0.00010959,2]
[335237914,1724009431986,-468.60163879,0.0001097,2]
[335237915,1724009431995,-416.38903404,0.00010979,2]
[335237916,1724009432005,-300.0,0.00010979,2]
[335237917,1724009432022,-188.86827548,0.00010979,2]
[335237918,1724009432034,-239.9881931,0.00010979,2]
[335237919,1724009432043,-508927.99580784,0.0001098,2]
[335237920,1724009432054,-2291.94185801,0.0001098,2]
[335237921,1724009432115,-593.145875,0.0001098,2]
[335237922,1724009432126,-356.88107954,0.0001098,2]
[335237923,1724009432147,-438.97982347,0.0001098,2]
[335237924,1724009432158,-506.97772487,0.0001098,2]
[335237926,1724009438028,-1565.70326029,0.0001098,2]
[335237927,1724009438058,-1952.74361478,0.0001098,2]
[335237928,1724009438070,-2662.82855991,0.0001098,2]
[335237929,1724009438191,-820.5999,0.0001098,2]
[335237930,1724009438271,-34040.28801778,0.0001098,2]
[335237967,1724009440196,-2000.0,0.0001098,2]
[335237968,1724009440248,-268.2,0.0001098,2]
[335237969,1724009440403,-20443.77746637,0.0001098,2]
[335237970,1724009440551,-6842.75011366,0.0001098,2]
[335237971,1724009440561,-161.87250652,0.00010987,2]
[335237972,1724009440571,-72268.96257793,0.0001099,3]
[335237973,1724009440606,-0.47999994,0.0001099,3]
[335237974,1724009440757,-1646.71890278,0.0001099,3]
[335237975,1724009440801,-512.51449802,0.0001099,3]
[335237976,1724009440813,-936.455,0.0001099,3]
[335238003,1724009443098,-155.0,0.00010979,2]
[335238004,1724009443107,-532.36978236,0.0001099,3]
[335238005,1724009443119,-5284.6116546,0.0001099,3]
[335238006,1724009443130,-275.452,0.0001099,3]
[335238020,1724009444528,-50072.03903067,0.0001099,3]
[335238021,1724009444682,-5706.9748694,0.0001099,3]
[335238022,1724009444693,-500.0,0.0001099,3]
[335238023,1724009444708,-1306.29532618,0.0001099,3]
[335238024,1724009444719,-7655.68224347,0.0001099,3]
[335238025,1724009444729,-283070.70254513,0.0001099,3]
[335238043,1724009446122,-7111.69925748,0.0001099,3]
[335238051,1724009446256,-1326.99611609,0.0001099,3]
[335238053,1724009446269,-1026.0,0.0001099,3]
[335238055,1724009446294,-1549.39999999,0.0001099,3]
[335238066,1724009463106,337.87,9.005e-05,2]
[335238067,1724009470054,151.15626,0.00010877,2]
[335238068,1724009474637,7500.0,0.0001088,2]
[335238069,1724009484429,1200.781944,0.000109,2]
[335238080,1724009552601,327.35,0.00010473,2]
[335238081,1724009553876,75269.6727,0.0001089,2]
[335238082,1724009570555,1642.8558,0.0001089,2]
[335238083,1724009577771,1263.1381,0.0001089,2]
[335238084,1724009585928,4370.0,0.0001088,2]
[335238086,1724009595764,565.1718,0.0001089,2]
[335238087,1724009616169,2500.0,0.0001089,2]
[335238088,1724009658252,160.48000493,0.000109,2]
[335238089,1724009689993,650.23659514,0.00010899,2]
[335238090,1724009693306,297.48958849,0.00010899,2]
[335238091,1724009716805,284.23524,0.0001089,2]
[335238092,1724009732158,186.25460476,0.00010859,2]
[335238094,1724009818436,436.72,0.00010273,2]
[335238095,1724009818968,883.19742416,0.00010899,2]
[335238096,1724009823908,883.19742408,0.00010899,2]
[335238097,1724009828915,883.19742408,0.00010899,2]
[335238098,1724009833944,883.19742408,0.00010899,2]
[335238099,1724009838969,883.19742408,0.00010899,2]
[335238100,1724009843932,883.19742408,0.00010899,2]
[335238101,1724009848937,883.19742408,0.00010899,2]
[335238102,1724009853948,883.19742408,0.00010899,2]
[335238105,1724009858923,883.19742408,0.00010899,2]
[335238106,1724009863933,883.19742408,0.000109,2]
[335238107,1724009879359,10659.9174158,0.000107,2]
[335238108,1724009915645,550.0,0.0001,2]
[335238109,1724009928981,365.15,8.353e-05,2]
[335238110,1724009929218,365.15,0.00010617,2]
[335238111,1724009934353,1680.5,0.00010271,2]
[335238112,1724010020430,15483.10746637,0.00010899,2]
[335238113,1724010066403,155.18436246,0.00010899,2]
[335238114,1724010113839,244.80962,0.0001088,2]
[335238115,1724010141396,169.76,0.00010205,2]
[335238116,1724010151697,10537.93253174,0.00010899,2]
[335238117,1724010156305,4054.32179788,0.00010899,2]
[335238119,1724010184006,1739.57017204,0.00010899,2]
[335238120,1724010187913,5403.79429818,0.00010899,2]
[335238121,1724010190195,1298.23330788,0.00010899,2]
[335238122,1724010206004,2841.12816254,0.00010899,2]
[335238123,1724010211514,1596.64538014,0.00010899,2]
[335238124,1724010235530,2502.58566001,0.00010899,2]
[335238125,1724010310134,150.0,0.00010899,2]
[335238126,1724010310187,989.1217656,0.00010899,2]
[335238127,1724010319520,155.0,0.00010899,2]
[335238128,1724010333374,150.0,0.00010899,2]
[335238129,1724010333397,150.0,0.00010899,2]
[335238130,1724010333418,150.0,0.00010899,2]
[335238131,1724010333440,150.0,0.00010899,2]
[335238132,1724010333461,87.41722855,0.00010899,2]
[335238133,1724010336908,201.12503779,0.00010899,2]
[335238134,1724010338088,892.72350459,0.00010899,2]
[335238135,1724010339208,650.62,0.0001018,2]
[335238137,1724010343322,150.0,0.00010899,2]
[335238138,1724010343343,150.0,0.00010899,2]
[335238139,1724010343364,150.0,0.00010899,2]
[335238140,1724010343384,150.0,0.00010899,2]
[335238141,1724010343404,150.0,0.00010899,2]
[335238142,1724010343425,150.0,0.00010899,2]
[335238143,1724010343446,150.0,0.00010899,2]
[335238144,1724010343467,150.0,0.00010899,2]
[335238145,1724010343486,150.0,0.00010899,2]
[335238146,1724010343508,150.0,0.00010899,2]
[335238147,1724010343528,150.0,0.00010899,2]
[335238148,1724010343548,150.0,0.00010899,2]
[335238149,1724010343568,150.0,0.00010899,2]
[335238150,1724010343588,194.99793751,0.00010899,2]
[335238151,1724010343615,18259.84755439,0.00010899,2]
[335238152,1724010368251,155.0,0.00010899,2]
[335238153,1724010379534,155.0,0.00010899,2]
[335238154,1724010406188,255.39001683,0.00010899,2]
[335238155,1724010407624,328.63,8.295e-05,2]
[335238156,1724010407670,328.63,0.00010559,2]
[335238157,1724010412050,600.74422133,0.00010899,2]
[335238158,1724010413270,155.0,0.00010899,2]
[335238159,1724010422224,547.93978231,0.00010899,2]
[335238160,1724010424924,493.59808335,0.00010899,2]
[335238161,1724010425803,3070.64956102,0.00010899,2]
[335238162,1724010429588,693.15255897,0.00010899,2]
[335238163,1724010433548,160.0,0.00010899,2]
[335238164,1724010434527,164.37927092,0.00010899,2]
[335238165,1724010435237,367.87511774,0.00010899,2]
[335238166,1724010438659,178.80521602,0.00010899,2]
[335238167,1724010445432,485.18668102,0.00010899,2]
[335238171,1724010449624,158.39644401,0.00010899,2]
[335238172,1724010451270,165.0,0.00010899,2]
[335238173,1724010451528,155.0,0.00010899,2]
[335238174,1724010452339,20404.8454919,0.00010899,2]
[335238175,1724010455913,1269.15931583,0.00010899,2]
[335238176,1724010456004,155.0,0.00010899,2]
[335238177,1724010461483,309.39614277,0.00010899,2]
[335238178,1724010461660,236.8627,0.0001088,2]
[335238179,1724010461704,167.58719206,0.00010899,2]
[335238180,1724010462740,155.0,0.00010899,2]
[335238181,1724010462801,218.91005949,0.00010899,2]
[335238182,1724010465477,241.97615057,0.00010899,2]
[335238183,1724010467997,313.76877667,0.00010899,2]
[335238184,1724010469218,155.0,0.00010899,2]
[335238185,1724010470249,155.0,0.00010899,2]
[335238186,1724010471389,328.2488375,0.00010899,2]
[335238187,1724010474081,203.41395605,0.00010899,2]
[335238188,1724010481151,215.23279799,0.00010899,2]
[335238189,1724010497347,380.32741541,0.00010899,2]
[335238191,1724010510565,365.80180037,0.00010899,2]
[335238192,1724010514547,270.58164358,0.00010899,2]
[335238193,1724010521536,236.34424982,0.00010899,2]
[335238194,1724010523654,432.47832469,0.00010899,2]
[335238198,1724010534793,159.60847032,0.00010899,2]
[335238199,1724010547309,160.0,0.00010899,2]
[335238200,1724010551528,155.0,0.00010899,2]
[335238201,1724010553333,785.85026999,0.00010899,2]
[335238205,1724010566120,171.48,0.00010192,2]
[335238209,1724010582100,1000.0,0.000109,2]
[335238210,1724010588946,357.45302385,0.00010899,2]
[335238211,1724010614212,150.0,0.00010866,2]
[335238212,1724010614236,838.98,0.00010866,2]
[335238213,1724010632185,-203.0,0.00010921,2]
[335238214,1724010632195,-155.13684037,0.00010949,2]
[335238215,1724010632204,-306.31072467,0.00010949,2]
[335238216,1724010632215,-3569.13124254,0.00010949,2]
[335238217,1724010632225,-250.0,0.00010959,2]
[335238218,1724010632234,-1860.7009197,0.00010976,2]
[335238219,1724010632245,-155.18840047,0.00010979,2]
[335238220,1724010632254,-155.0,0.00010979,2]
[335238221,1724010632263,-2141.39461559,0.00010985,2]
[335238222,1724010632295,-343.36626588,0.00010985,2]
[335238223,1724010632306,-1443.6854515,0.00010985,2]
[335238224,1724010632318,-462.53216332,0.00010985,2]
[335238225,1724010632348,-2889.65185721,0.00010985,2]
[335238226,1724010632359,-1137.39382393,0.00010985,2]
[335238227,1724010632370,-531.17276182,0.00010985,2]
[335238228,1724010632381,-7069.84804299,0.00010985,2]
[335238229,1724010632392,-76219.0,0.00010986,2]
[335238230,1724010632401,-521.0,0.00010986,2]
[335238231,1724010632410,-204.00801,0.00010987,2]
[335238232,1724010632419,-793.29,0.00010987,2]
[335238233,1724010632429,-2035.71437874,0.00010987,2]
[335238234,1724010632440,-500.0,0.00010989,2]
[335238235,1724010632450,-159.23487376,0.00010989,2]
[335238236,1724010632459,-420.25,0.00010989,2]
[335238237,1724010632471,-155.0,0.00010989,2]
[335238238,1724010632481,-206586.68546027,0.0001099,3]
[335238239,1724010632493,-5494.09822519,0.0001099,3]
[335238240,1724010632504,-883.54995,0.0001099,3]
[335238241,1724010632515,-846.47,0.0001099,3]
[335238242,1724010632527,-350.2299999,0.0001099,3]
[335238243,1724010632538,-10730.55001468,0.0001099,3]
[335238244,1724010632549,-11506.71936319,0.0001099,3]
[335238245,1724010632563,-11935.23239639,0.0001099,3]
[335238246,1724010638115,-287.75747,0.0001099,3]
[335238247,1724010638126,-12573.41437419,0.0001099,3]
[335238248,1724010638137,-2348.40046312,0.0001099,3]
[335238249,1724010638171,-108110.69427975,0.0001099,3]
[335238250,1724010638281,-774857.49717178,0.0001099,3]
[335238251,1724010638291,-5955.90936179,0.0001099,2]
[335238252,1724010638301,-5034.04,0.0001099,2]
[335238253,1724010638310,-499.99,0.0001099,2]
[335238254,1724010638319,-581.63267964,0.00010997,2]
[335238255,1724010638329,-588.82412706,0.00010998,2]
[335238256,1724010638338,-152.31108172,0.00010999,2]
[335238257,1724010638347,-1031.54405097,0.00010999,3]
[335238258,1724010638356,-610.25074238,0.00010999,2]
[335238259,1724010638365,-304.12480458,0.00010999,2]
[335238260,1724010638375,-843568.03932331,0.00011,2]
[335238261,1724010638384,-193047.66737347,0.00011,2]
[335238262,1724010638396,-2007.36118124,0.00011,2]
[335238263,1724010638407,-450.95372915,0.00011,2]
[335238264,1724010638418,-299.45156947,0.00011,2]
[335238265,1724010638617,-1500.0,0.00011,2]
[335238266,1724010638627,-28622.91817211,0.00011,2]
[335238267,1724010640278,-1200.0,0.00011,2]
[335238268,1724010640436,-2123.07399969,0.00011,2]
[335238269,1724010640449,-23752.42038252,0.00011,2]
[335238270,1724010640460,-52314.45260923,0.00011,2]
[335238271,1724010640517,-363.06414405,0.00011,2]
[335238272,1724010640528,-2252.91618196,0.00011,2]
[335238273,1724010640544,-4439.65096878,0.00011,2]
[335238274,1724010640555,-4478.44625082,0.00011,2]
[335238275,1724010640746,-10625.59365678,0.00011,2]
[335238276,1724010640758,-5978.436525,0.00011,2]
[335238277,1724010640773,-1966.49143172,0.00011,2]
[335238278,1724010640785,-8040.38885076,0.00011,2]
[335238279,1724010640797,-6618.563923,0.00011,2]
[335238280,1724010640809,-3145.404275,0.00011,2]
[335238281,1724010640820,-1214.79818361,0.00011,2]
[335238282,1724010640831,-400.07483383,0.00011,2]
[335238283,1724010640842,-745.83403878,0.00011,2]
[335238284,1724010640853,-5464.19112739,0.00011,2]
[335238488,1724010643899,-659269.85329955,0.00011,2]
[335238489,1724010643913,-354.726,0.00011,2]
[335238490,1724010643924,-1150.0,0.00011,2]
[335238495,1724010646187,-33089.20885507,0.00011,2]
[335238496,1724010646199,-20168.87724733,0.00011,2]
[335238497,1724010646210,-33805.75342203,0.00011,2]
[335238498,1724010646296,-72486.2814,0.00011,2]
[335238499,1724010646352,-713.7625,0.00011,2]
[335238500,1724010646365,-1956.77125,0.00011,2]
[335238501,1724010646376,-5725.10180032,0.00011,2]
[335238502,1724010646407,-5746.971,0.00011,2]
[335238503,1724010646418,-11194.30495115,0.00011,2]
[335238504,1724010649462,11027.15320545,0.000109,2]
[335238505,1724010698041,168.18924987,0.000109,2]
[335238506,1724010711636,200.24672948,0.00010846,2]
[335238507,1724010794491,150.0,0.00010884,2]
[335238511,1724010824026,225.68,0.00010768,2]
[335238512,1724010859951,348.45,8.892e-05,2]
[335238513,1724010894540,203.24103,0.0001089,2]
[335238514,1724010904476,7964.3508024,0.000108,2]
[335238515,1724010907727,13234.5553,0.000109,2]
[335238516,1724010909489,1178.07631461,0.00010882,2]
[335238517,1724010925504,2361.6541,0.000109,2]
[335238518,1724010926382,479.5,0.00010762,2]
[335238519,1724010985611,197.38558,0.0001089,2]
[335238521,1724011024521,52.61442,0.00010899,2]
[335238522,1724011024546,144.5242679,0.00010899,2]
[335238523,1724011043307,291.8688,0.000109,2]
[335238524,1724011053151,250.0,0.00010718,2]
[335238525,1724011056935,1397.0818,0.000109,2]
[335238526,1724011060912,1000.0,0.000109,2]
[335238527,1724011073864,170.2,0.00010688,2]
[335238528,1724011075893,1525.6402,0.000109,2]
[335238529,1724011119978,69368.04169123,0.000109,2]
[335238530,1724011141649,150.0,0.000109,2]
[335238531,1724011141671,7.39258195,0.000109,2]
[335238534,1724011154832,142.60741805,0.000109,2]
[335238535,1724011154854,150.0,0.000109,2]
[335238536,1724011154875,150.0,0.000109,2]
[335238537,1724011154897,150.0,0.000109,2]
[335238538,1724011154919,189.87347152,0.000109,2]
[335238539,1724011154943,1129.16611043,0.000109,2]
[335238540,1724011176262,322.29762649,0.000109,2]
[335238541,1724011218374,908.2,0.00010407,2]
[335238542,1724011221989,200.0,0.00010451,2]
[335238543,1724011307171,261.88,0.00010374,2]
[335238544,1724011317022,225.68,0.00010405,2]
[335238545,1724011330648,166.76578094,0.00010899,2]
[335238546,1724011333720,155.0,0.00010899,2]
[335238547,1724011333754,470.98092,0.0001089,2]
[335238548,1724011384372,1876.7215,0.000109,2]
[335238549,1724011397386,616.4,0.00010339,2]
[335238550,1724011430542,440.33940223,0.00010899,2]
[335238551,1724011435564,431.88,8.466e-05,2]
[335238552,1724011435986,431.88,0.00010729,2]
[335238553,1724011445814,155.0,0.00010899,2]
[335238557,1724011482622,649.14803257,0.00010899,2]
[335238558,1724011499079,5403.79429818,0.00010899,2]
[335238559,1724011513159,150.0,9.888e-05,2]
[335238560,1724011521087,1780.70658812,0.00010899,2]
[335238565,1724011551898,1725.0,0.00010899,2]
[335238566,1724011567384,687.41722855,0.00010899,2]
[335238567,1724011577103,212.24302171,0.00010899,2]
[335238568,1724011629582,1540.99676959,0.00010899,2]
[335238569,1724011646694,900.0,0.00010899,2]
[335238571,1724011724674,392.4841,0.0001089,2]
[335238572,1724011726374,155.0,0.00010899,2]
[335238573,1724011734999,357.45302385,0.00010899,2]
[335238574,1724011738057,155.18237905,0.00010899,2]
[335238575,1724011744470,550.0,0.0001,2]
[335238577,1724011759059,155.0,0.00010899,2]
[335238579,1724011766006,203.41395605,0.00010899,2]
[335238580,1724011769243,633.30584726,0.00010899,2]
[335238582,1724011789600,155.26805256,0.00010899,2]
[335238583,1724011790890,155.0,0.00010899,2]
[335238584,1724011792433,380.32741541,0.00010899,2]
[335238585,1724011796084,284.43090338,0.00010899,2]
[335238586,1724011796898,155.70062256,0.00010899,2]
[335238587,1724011801315,338.72878612,0.00010899,2]
[335238588,1724011820085,164.37927092,0.00010899,2]
[335238600,1724011832257,-155.0,0.00010949,2]
[335238603,1724011832267,-155.1718428,0.00010949,2]
[335238606,1724011832277,-603.39257297,0.00010949,2]
[335238609,1724011832287,-250.0,0.00010959,2]
[335238612,1724011832297,-454.17,0.00010959,2]
[335238615,1724011832313,-528.91996067,0.00010979,2]
[335238617,1724011832322,-175.54,0.00010982,2]
[335238619,1724011832331,-155.0,0.00010989,2]
[335238621,1724011832340,-1481.5880324,0.00010997,2]
[335238623,1724011832353,-1650.99,0.00010997,2]
[335238626,1724011832368,-8566.99748978,0.00010997,2]
[335238628,1724011832379,-892.29859306,0.00010997,2]
[335238633,1724011832418,-5930.88241945,0.00010997,2]
[335238634,1724011832427,-152.31108172,0.00010999,2]
[335238635,1724011832436,-1031.54405097,0.00010999,3]
[335238636,1724011832446,-1031.54405098,0.00010999,3]
[335238637,1724011832456,-150.0,0.00010999,2]
[335238638,1724011832465,-38200.37790719,0.00011,2]
[335238639,1724011832476,-2005.57355483,0.00011,2]
[335238640,1724011832489,-73794.36648651,0.00011,2]
[335238641,1724011832502,-280.56667432,0.00011,2]
[335238642,1724011832527,-14391.01,0.00011,2]
[335238643,1724011832538,-322.91174239,0.00011,2]
[335238644,1724011832549,-577.10958192,0.00011,2]
[335238648,1724011833086,155.0,0.00010899,2]
[335238653,1724011838514,-8847.75,0.00011,2]
[335238654,1724011838559,-5000.0,0.00011,2]
[335238655,1724011838664,-843.27,0.00011,2]
[335238656,1724011838675,-650.98991723,0.00011,2]
[335238657,1724011838687,-17123.90098069,0.00011,2]
[335238661,1724011840543,-531.2423039,0.00011,2]
[335238662,1724011840554,-1213.13686397,0.00011,2]
[335238663,1724011840572,-354.33584849,0.00011,2]
[335238664,1724011840586,-502.49888056,0.00011,2]
[335238665,1724011840599,-12414.52112455,0.00011,2]
[335238666,1724011840613,-687.06,0.00011,2]
[335238667,1724011840628,-824.7342915,0.00011,2]
[335238668,1724011840640,-293.04699676,0.00011,2]
[335238669,1724011840651,-326.79755519,0.00011,2]
[335238670,1724011840663,-2556.83930075,0.00011,2]
[335238671,1724011840674,-5749.0,0.00011,2]
[335238672,1724011840685,-2923.62999489,0.00011,2]
[335238673,1724011840708,-2437.59878754,0.00011,2]
[335238674,1724011840763,-27360.01044779,0.00011,2]
[335238675,1724011840818,-1282.0950861,0.00011,2]
[335238676,1724011840829,-514.54999978,0.00011,2]